fUST/lending_fUST_20240510
["ID","MTS","AMOUNT","RATE_DAILY","PERIOD"]
[326730427,1715286481970,-6672.31584718,0.0002,15]
[326730428,1715286482008,-7972.02123506,0.0002,2]
[326730429,1715286482044,-58868.11589433,0.0002,2]
[326730588,1715286638575,-154.7215013,0.0002,2]
[326730590,1715286638585,-166.666666,0.00021931,2]
[326730591,1715286638595,-166.666666,0.00022927,2]
[326730592,1715286638605,-166.666666,0.00023924,2]
[326730593,1715286638614,-166.666666,0.0002492,2]
[326730594,1715286638624,-150.0,0.00027315,5]
[326730595,1715286638640,-27.70633507,0.00049195,60]
[326730603,1715286641720,-122.29366493,0.00049195,60]
[326730604,1715286641731,-1522.7215415,0.00049999,4]
[326730606,1715286641741,-962.90174546,0.0005,60]
[326730609,1715286641752,-621.5,0.00065753,120]
[326730612,1715286641764,-500.0,0.00068493,120]
[326730614,1715286641775,-150.0,0.00071076,120]
[326730616,1715286641785,-500.0,0.00071232,120]
[326730618,1715286641796,-154.7215013,0.00073971,7]
[326730620,1715286641806,-500.0,0.00073972,120]
[326730622,1715286641817,-500.0,0.00076712,120]
[326730623,1715286641828,-166.666666,0.00076712,120]
[326730625,1715286641838,-150.0,0.0007923,118]
[326730627,1715286641851,-1000.0,0.00079299,3]
[326730629,1715286641862,-4378.31,0.00079308,3]
[326730631,1715286641872,-3724.76150533,0.00079308,3]
[326730633,1715286641887,-532.72,0.00079308,3]
[326730683,1715286644520,-302.00997705,0.00079308,3]
[326730694,1715286646526,-169.629125,0.0004281,2]
[326730695,1715286646536,-1015.54851762,0.00079308,3]
[326730697,1715286646545,-1000.0,0.00079309,3]
[326730698,1715286646554,-500.0,0.00079317,120]
[326730699,1715286646563,-422.07271597,0.00079317,120]
[326730700,1715286646573,-22.74744141,0.00079317,120]
[326730766,1715287761114,-164.385122,0.0001589,2]
[326730767,1715287761136,-175.307484,0.0001589,2]
[326730768,1715287761156,-225.0,0.00021918,2]
[326730821,1715287832613,-410.0439855,0.00025,3]
[326730823,1715287832623,-150.0,0.00027482,5]
[326730825,1715287832631,-154.7215013,0.00031251,4]
[326730827,1715287832641,-285.2345132,0.000378,25]
[326730902,1715287839780,-624.36834555,0.000378,25]
[326731039,1715287841189,-90.39714125,0.000378,25]
[326731040,1715287841199,-909.59622925,0.0004,4]
[326731065,1715287841914,-613.12531225,0.0004,4]
[326731067,1715287841923,-643.0,0.00045,120]
[326731069,1715287841933,-164.385122,0.00046164,2]
[326731071,1715287841942,-291.39771783,0.0005,30]
[326731073,1715287841951,-1011.30002229,0.000587,60]
[326731075,1715287841960,-671.6679891,0.0006,12]
[326731077,1715287841969,-621.5,0.00065753,120]
[326731079,1715287841978,-150.1,0.00065753,120]
[326731081,1715287841988,-494.0,0.00069132,120]
[326731083,1715287841997,-491.047,0.00072132,120]
[326731085,1715287842006,-164.385122,0.00076438,120]
[326731086,1715287842016,-166.666666,0.00076712,120]
[326731089,1715287842026,-153.0,0.00076726,60]
[326731090,1715287842041,-153.0,0.00076726,60]
[326731092,1715287842050,-153.0,0.00076726,60]
[326731094,1715287842060,-258.36664899,0.00077782,120]
[326731200,1715287844156,-741.63335101,0.00077782,120]
[326731202,1715287844166,-153.0,0.00078904,60]
[326731204,1715287844175,-334.1067388,0.00078904,60]
[326731206,1715287844185,-153.0,0.00079126,60]
[326731209,1715287844194,-773.89910385,0.00079263,28]
[326731212,1715287844204,-619.89550732,0.00079298,60]
[326731215,1715287844214,-2895.06529902,0.00079319,40]
[326731217,1715287844226,-624.421824,0.00079319,40]
[326731368,1715287846733,-1382.47128608,0.00079319,40]
[326731373,1715287869340,154.75415547,0.00021918,2]
[326731374,1715287882560,263.4325465,0.0001589,2]
[326731375,1715287892607,7337.81680263,0.00020913,2]
[326731378,1715288029103,1400.34943424,9.999e-05,2]
[326731383,1715288351945,154.75239617,9.999e-05,2]
[326731384,1715288371928,154.75239617,9.999e-05,2]
[326731385,1715288389927,162.28050051,9.999e-05,2]
[326731386,1715288496342,154.7215013,0.0001,2]
[326731387,1715288741872,1400.34943424,9.999e-05,2]
[326731388,1715288802056,154.75415547,9.999e-05,2]
[326731394,1715288816116,-154.7215013,0.00015889,2]
[326731395,1715288816137,-169.532797,0.0001589,2]
[326731396,1715288816159,-1944.8623938,0.00019436,2]
[326731397,1715288816182,-187.526689,0.0001963,2]
[326731398,1715288816202,-243.79526758,0.00020811,2]
[326731399,1715288816223,-156.39130606,0.0002091,2]
[326731400,1715288816245,-154.91560096,0.0002091,2]
[326731401,1715288816264,-154.75239617,0.0002091,2]
[326731402,1715288816285,-154.75239617,0.0002091,2]
[326731403,1715288816305,-154.79456694,0.0002091,2]
[326731404,1715288816325,-1493.5731825,0.0002091,2]
[326731405,1715288816349,-469.47096608,0.0002091,2]
[326731406,1715288816370,-1092.87842809,0.0002091,2]
[326731407,1715288816390,-500.0,0.0002091,2]
[326731408,1715288816411,-1288.74183226,0.0002091,2]
[326731412,1715289032928,-201.041717,0.0001589,2]
[326731413,1715289032939,-154.7215013,0.00018499,2]
[326731415,1715289032948,-604.68382158,0.000185,2]
[326731417,1715289032958,-3056.74707553,0.00020808,2]
[326731419,1715289032967,-172.66021843,0.0002081,2]
[326731421,1715289032977,-677.16171593,0.00020811,2]
[326731423,1715289032987,-424.47172838,0.0002091,2]
[326731426,1715289032997,-1018.68029862,0.0002091,2]
[326731435,1715289033083,-1092.87842809,0.0002091,2]
[326731437,1715289033094,-254.43570983,0.0002091,2]
[326731439,1715289033104,-188.41780747,0.0002091,2]
[326731441,1715289033114,-62520.0,0.00020911,2]
[326731443,1715289033125,-54051.28989728,0.00020912,2]
[326731445,1715289033136,-189.550144,0.00021918,2]
[326731447,1715289033146,-1039.0975033,0.00021918,2]
[326731449,1715289033156,-2392.14411668,0.00022,2]
[326731451,1715289033166,-4279.3857928,0.0004,4]
[326731453,1715289033176,-521.83190116,0.0004,120]
[326731455,1715289033186,-169.532797,0.0004011,2]
[326731457,1715289033196,-153.0,0.00044724,2]
[326731459,1715289033206,-153.0,0.00044998,2]
[326731461,1715289033216,-306.0,0.00044998,2]
[326731463,1715289033226,-10000.0,0.00045,45]
[326731465,1715289033236,-151.0,0.00045,120]
[326731467,1715289033246,-5000.0,0.0005,45]
[326731469,1715289033256,-500.0,0.0005,10]
[326731470,1715289033266,-677.16171586,0.00054491,28]
[326731472,1715289033276,-5000.0,0.0006,46]
[326731474,1715289033286,-169.532797,0.00064329,2]
[326731477,1715289033296,-621.5,0.00065753,120]
[326731479,1715289033306,-500.0,0.00069999,120]
[326731481,1715289033316,-500.0,0.00069999,120]
[326731482,1715289033328,-500.0,0.00069999,120]
[326731484,1715289033338,-500.0,0.00069999,120]
[326731487,1715289033349,-524.49529232,0.00069999,120]
[326731488,1715289033359,-500.0,0.00069999,120]
[326731491,1715289033369,-610.45870737,0.00069999,120]
[326731494,1715289033381,-500.0,0.00069999,120]
[326731497,1715289033391,-500.0,0.00069999,120]
[326731499,1715289033407,-607.29643907,0.00069999,120]
[326731502,1715289033417,-106.13640175,0.0007,47]
[326731593,1715289039992,-258.75359852,0.00020911,2]
[326731658,1715289045880,-605.69774973,0.0002091,2]
[326731660,1715289045891,-165.87815251,0.00020911,2]
[326731665,1715289045902,-3226.3,0.0004999,3]
[326731670,1715289045912,-4893.86359825,0.0007,47]
[326731674,1715289045922,-201.041717,0.00076438,120]
[326731677,1715289045936,-166.666666,0.00076712,120]
[326731678,1715289045946,-2014.295481,0.00078,90]
[326731681,1715289045957,-150.0,0.00078903,2]
[326731684,1715289045979,-154.5618725,0.00078904,120]
[326731685,1715289045990,-1000.0,0.00078961,120]
[326731686,1715289046000,-5000.0,0.00079,90]
[326731687,1715289046010,-867.37538917,0.00079049,60]
[326731688,1715289046023,-1000.0,0.00079187,60]
[326731689,1715289046043,-1000.0,0.00079193,60]
[326731690,1715289046058,-160.0,0.000793,60]
[326731691,1715289046069,-21507.06761789,0.0007931,120]
[326731699,1715289047316,-22231.79974445,0.0007931,120]
[326731701,1715289047330,-125430.31993949,0.0007931,120]
[326731702,1715289047341,-6652.83998075,0.0007931,120]
[326731714,1715289048105,-500.0,0.00020911,2]
[326731715,1715289048117,-2861.25,0.0007931,120]
[326731732,1715289641764,1336.61268754,9.999e-05,2]
[326731733,1715289651486,194.13169488,9.999e-05,2]
[326731734,1715289676620,154.7215013,9.999e-05,2]
[326731742,1715289691042,154.7215013,0.0001,2]
[326731785,1715290232125,-612.0,0.00015784,2]
[326731788,1715290232137,-1282.38518573,0.00015784,2]
[326731790,1715290232147,-351.18588152,0.00015785,2]
[326731792,1715290232156,-154.7215013,0.00015883,2]
[326731794,1715290232165,-162.512912,0.0001589,2]
[326731796,1715290232174,-894.35335504,0.00019884,2]
[326731798,1715290232183,-413.25224896,0.00019885,2]
[326731800,1715290232192,-166.39424,0.00019887,2]
[326731802,1715290232202,-757.08531227,0.00020809,2]
[326731804,1715290232212,-62520.0,0.00020908,2]
[326731806,1715290232221,-1919.20371595,0.00020909,2]
[326731808,1715290232231,-10086.38656753,0.00020909,2]
[326731810,1715290232240,-515.19631868,0.00020911,2]
[326731811,1715290232249,-194.02563193,0.00020911,2]
[326731813,1715290232258,-196.32906211,0.00020911,2]
[326731815,1715290232267,-225.0000005,0.00021918,2]
[326731817,1715290232277,-7950.37253972,0.00028,2]
[326731819,1715290232286,-319.7,0.00028242,5]
[326731821,1715290232295,-716.81660624,0.00031628,2]
[326731823,1715290232304,-624.84083031,0.00033209,2]
[326731825,1715290232313,-1828.799615,0.000363,25]
[326731827,1715290232322,-1000.0,0.000368,25]
[326731829,1715290232331,-1000.0,0.000373,25]
[326731831,1715290232340,-1000.0,0.000378,25]
[326731833,1715290232350,-159.0,0.00038275,120]
[326731835,1715290232359,-1697.9100707,0.000425,30]
[326731837,1715290232368,-306.0,0.00044603,2]
[326731839,1715290232377,-153.0,0.0004474,2]
[326731841,1715290232386,-153.0,0.0004474,2]
[326731843,1715290232395,-306.0,0.00045014,2]
[326731845,1715290232405,-306.0,0.00045562,2]
[326731847,1715290232414,-153.0,0.00045562,2]
[326731849,1715290232423,-153.0,0.00045562,2]
[326731851,1715290232432,-153.0,0.00045562,2]
[326731853,1715290232442,-153.0,0.00045562,2]
[326731854,1715290232450,-306.0,0.00045562,2]
[326731856,1715290232460,-757.08531221,0.00046766,28]
[326731858,1715290232470,-5000.0,0.0005,45]
[326731860,1715290232479,-319.7,0.00050038,60]
[326731862,1715290232487,-1115.54955424,0.00059999,4]
[326731864,1715290232496,-5000.0,0.0006,46]
[326731866,1715290232505,-156.47258726,0.00064964,120]
[326731868,1715290232515,-621.5,0.00065753,120]
[326731870,1715290232524,-500.0,0.00068493,120]
[326731872,1715290232533,-5000.0,0.0007,47]
[326731874,1715290232542,-10000.0,0.0007,41]
[326731876,1715290232551,-500.0,0.00071232,120]
[326731878,1715290232560,-319.7,0.00071834,120]
[326731880,1715290232568,-757.08531221,0.00072724,28]
[326731882,1715290232578,-558.85344719,0.00073972,120]
[326731884,1715290232586,-153.0,0.00076068,60]
[326731886,1715290232596,-162.512912,0.00076438,120]
[326731888,1715290232605,-166.666666,0.00076712,120]
[326731890,1715290232614,-153.0,0.0007689,120]
[326731892,1715290232624,-153.0,0.0007689,120]
[326731894,1715290232633,-153.0,0.0007689,120]
[326731896,1715290232642,-153.0,0.0007689,120]
[326731898,1715290232651,-306.0,0.000769,120]
[326731901,1715290232661,-10000.0,0.00078,61]
[326731903,1715290232670,-5000.0,0.00078,90]
[326731905,1715290232679,-159.99381496,0.00078113,120]
[326731907,1715290232690,-153.0,0.00078247,60]
[326731908,1715290232699,-306.0,0.00078247,60]
[326731910,1715290232709,-6744.96,0.00078336,3]
[326731912,1715290232719,-6035.89604638,0.00078346,61]
[326731914,1715290232729,-153.0,0.00078356,60]
[326731916,1715290232738,-153.0,0.00078356,60]
[326731918,1715290232747,-153.0,0.00078356,60]
[326731920,1715290232757,-150.0,0.00078903,2]
[326731922,1715290232766,-153.0,0.00078904,60]
[326731924,1715290232776,-153.0,0.00078904,60]
[326731926,1715290232786,-153.0,0.00078904,60]
[326731928,1715290232795,-500.0,0.00078985,120]
[326731930,1715290232804,-500.0,0.00078985,120]
[326731932,1715290232813,-500.0,0.00078985,120]
[326731934,1715290232822,-500.0,0.00078985,120]
[326731936,1715290232836,-492.65944334,0.00078985,120]
[326731938,1715290232845,-500.0,0.00078985,120]
[326731940,1715290232854,-500.0,0.00078985,120]
[326731942,1715290232864,-281.87218137,0.00078985,120]
[326731944,1715290232874,-21395.29610038,0.00078986,120]
[326731946,1715290232883,-1000.0,0.0007909,60]
[326731948,1715290232892,-1000.0,0.00079094,60]
[326731950,1715290232902,-151.0,0.00079094,120]
[326731952,1715290232912,-151.0,0.00079094,120]
[326731954,1715290232922,-151.0,0.00079094,120]
[326731956,1715290232932,-317.145108,0.00079094,120]
[326731958,1715290232941,-151.0,0.00079094,120]
[326731960,1715290232950,-317.145108,0.00079094,120]
[326731962,1715290232961,-151.0,0.00079094,120]
[326731964,1715290232970,-1304259.97264149,0.00079099,120]
[326732036,1715290237967,-314.2698051,0.00027999,2]
[326732038,1715290237976,-500.0,0.00027999,2]
[326732039,1715290237984,-500.0,0.00027999,2]
[326732040,1715290237994,-500.0,0.00078985,120]
[326732042,1715290238003,-500.0,0.00078985,120]
[326732043,1715290238012,-500.0,0.00078985,120]
[326732045,1715290238022,-500.0,0.00078985,120]
[326732047,1715290238031,-500.0,0.00078985,120]
[326732048,1715290238040,-500.0,0.00078985,120]
[326732050,1715290238049,-500.0,0.00078985,120]
[326732056,1715290238130,-500.0,0.00078985,120]
[326732057,1715290238140,-500.0,0.00078985,120]
[326732059,1715290238149,-500.0,0.00078985,120]
[326732060,1715290238159,-500.0,0.00078985,120]
[326732062,1715290238168,-500.0,0.00078985,120]
[326732064,1715290238178,-500.0,0.00078985,120]
[326732065,1715290238190,-500.0,0.00078985,120]
[326732067,1715290238201,-500.0,0.00078985,120]
[326732068,1715290238211,-500.0,0.00078985,120]
[326732070,1715290238220,-500.0,0.00078985,120]
[326732072,1715290238228,-500.0,0.00078985,120]
[326732073,1715290238238,-500.0,0.00078985,120]
[326732075,1715290238247,-281.83893172,0.00078985,120]
[326732077,1715290238256,-45537.24021481,0.00079099,120]
[326732079,1715290238268,-1129.34726464,0.00079099,120]
[326732080,1715290238279,-62971.17129292,0.00079099,120]
[326732605,1715290246056,-1285.95392842,0.00020913,2]
[326732607,1715290246066,-154.7215013,0.00020913,2]
[326732609,1715290246076,-282.509601,0.00078336,120]
[326732611,1715290246085,-2397.01496928,0.00079089,3]
[326732613,1715290246097,-3223.78503072,0.00079089,3]
[326732624,1715290246172,-125381.68664255,0.00079099,120]
[326738360,1715290722653,154.7215013,9.999e-05,2]
[326738361,1715290742691,1578.94023336,9.999e-05,2]
[326738364,1715290783646,491.91161374,9.999e-05,2]
[326738374,1715290949017,154.7215013,0.0001,2]
[326738375,1715290950811,1713.81519438,9.999e-05,2]
[326738382,1715291348165,154.7215013,9.999e-05,2]
[326738454,1715291434245,-154.7215013,0.00015889,2]
[326738455,1715291434255,-175.307484,0.0001589,2]
[326738456,1715291434264,-169.532797,0.0001589,2]
[326738457,1715291434273,-1965.54061829,0.000176,2]
[326738458,1715291434282,-150.0,0.000189,2]
[326738459,1715291434293,-385.215821,0.00019247,2]
[326738460,1715291434303,-1000.0,0.00020907,3]
[326738461,1715291434313,-155.45776225,0.00020911,2]
[326738462,1715291434322,-1711.28274096,0.00020912,2]
[326738463,1715291434332,-893.76474669,0.00020913,2]
[326738464,1715291434341,-36563.352166,0.00020913,2]
[326738561,1715291440784,-999.8931978,0.00020913,2]
[326738755,1715291443928,-15212.12000001,0.00020913,2]
[326738756,1715291443939,-2708.9103859,0.00020913,2]
[326738757,1715291443952,-7035.72425029,0.00020913,2]
[326738758,1715291443961,-473.17832014,0.00027896,2]
[326738759,1715291443971,-1054.46551513,0.00027996,3]
[326738760,1715291443981,-658.72946128,0.00028467,2]
[326738761,1715291443991,-188.0,0.00028476,5]
[326738762,1715291444001,-385.215821,0.00028871,2]
[326738763,1715291444010,-1980.598515,0.00037,2]
[326738764,1715291444019,-1000.0,0.000378,25]
[326738765,1715291444029,-200.0,0.0003872,120]
[326738766,1715291444038,-158.60993444,0.00038751,30]
[326738767,1715291444047,-100.0713758,0.00038751,7]
[326738768,1715291444063,-50.17079187,0.00038751,7]
[326738769,1715291444073,-323.93543864,0.00038751,120]
[326738770,1715291444082,-571.85326953,0.00038751,21]
[326738771,1715291444091,-157.96408012,0.00038751,30]
[326738772,1715291444100,-157.96408012,0.00038751,30]
[326738773,1715291444109,-157.96408012,0.00038751,30]
[326738774,1715291444119,-157.96408012,0.00038751,30]
[326738775,1715291444128,-455.57765108,0.00039987,4]
[326738776,1715291444137,-663.81031729,0.00039988,4]
[326738777,1715291444147,-154.78048735,0.00039997,4]
[326738778,1715291444234,-154.78009316,0.00039998,4]
[326738779,1715291444247,-3695.79389823,0.0004,2]
[326738780,1715291444259,-7302.86528306,0.0004,2]
[326738795,1715291445299,-8967.25442613,0.0004,2]
[326738796,1715291445310,-1202.67697353,0.0004,2]
[326738839,1715291446633,-2423.8,0.0004,2]
[326738840,1715291489187,2471.85189445,9.999e-05,2]
[326738841,1715291501952,2808.26543682,9.999e-05,2]
[326738845,1715291948472,1093.15488172,9.999e-05,2]
[326738846,1715292074690,154.7215013,0.0001,2]
[326738870,1715292547107,-154.7215013,0.00015889,2]
[326738871,1715292547130,-208.8267,0.0001589,2]
[326738872,1715292547150,-3000.0,0.00019228,2]
[326738873,1715292547171,-255.714577,0.00019672,2]
[326738874,1715292547191,-200.0,0.0002,2]
[326738875,1715292547211,-456.72835292,0.00020784,2]
[326738876,1715292547231,-154.94033689,0.00020879,2]
[326738877,1715292547252,-3889.78209533,0.0002088,2]
[326738905,1715292632372,-154.7215013,0.00020876,2]
[326738907,1715292632382,-1093.15488172,0.00020877,2]
[326738909,1715292632391,-20002.10361698,0.00020877,2]
[326738911,1715292632403,-9974.0,0.00020877,2]
[326738913,1715292632414,-1463.51827063,0.00020877,2]
[326739111,1715292646385,-5659.54202429,0.00020876,2]
[326739120,1715292651965,940.86993173,0.00015,2]
[326739121,1715292661558,1713.81519438,9.999e-05,2]
[326739126,1715292676930,436.19419462,9.999e-05,2]
[326739128,1715292708964,315.43093122,9.999e-05,2]
[326739134,1715292743003,154.7215013,9.999e-05,2]
[326739135,1715292748626,469.58481341,9.999e-05,2]
[326739136,1715292761766,154.7215013,9.999e-05,2]
[326739137,1715292773198,154.7215013,9.999e-05,2]
[326739138,1715292776915,154.7215013,9.999e-05,2]
[326739139,1715292785793,1493.98281956,9.999e-05,2]
[326739140,1715292793395,154.7215013,9.999e-05,2]
[326739144,1715293545851,-1000.0,0.00015869,2]
[326739145,1715293551402,154.7215013,0.0001,2]
[326739146,1715293728168,1713.81519438,9.999e-05,2]
[326739150,1715293832492,-165.764849,0.0001589,2]
[326739151,1715293832502,-187.526689,0.00019567,2]
[326739152,1715293832511,-4203.39522708,0.00019636,2]
[326739159,1715293832665,-1518.48172937,0.00019636,2]
[326739223,1715293838703,-2280.79350205,0.00019636,2]
[326739224,1715293838714,-120.95032046,0.00020772,2]
[326739225,1715293838725,-122.84494712,0.00020772,2]
[326739226,1715293838734,-154.7215013,0.00020868,2]
[326739227,1715293838743,-251.64450165,0.00020869,2]
[326739228,1715293838753,-1019.58687163,0.0002087,2]
[326739229,1715293838762,-318.68488884,0.00020872,2]
[326739230,1715293838771,-155.11361288,0.00020872,2]
[326739231,1715293838781,-468.55909175,0.00020872,2]
[326739232,1715293838790,-190.03093985,0.00020872,2]
[326739233,1715293838799,-862.22988266,0.00020872,2]
[326739234,1715293838809,-881.1877535,0.00020872,2]
[326739235,1715293838819,-220.44269375,0.00020873,2]
[326739236,1715293838829,-265.72446929,0.00020873,2]
[326739237,1715293838839,-154.89431468,0.00020874,2]
[326739238,1715293838848,-508.66206833,0.00020874,2]
[326739239,1715293838858,-9336.05758294,0.00020874,2]
[326739240,1715293838873,-718.25132778,0.00020874,2]
[326739523,1715293844203,-0.0231298,0.00020874,2]
[326739525,1715293844214,-52465.66795948,0.00020874,2]
[326739527,1715293844224,-154.829647,0.00020875,2]
[326739529,1715293844233,-154.94304364,0.00020875,2]
[326739531,1715293844242,-51714.7601384,0.00020875,2]
[326739533,1715293844252,-951.40231325,0.00020899,2]
[326739535,1715293844261,-1651.08515949,0.00020908,2]
[326739538,1715293844274,-178.108405,0.00021918,2]
[326739540,1715293844283,-166.666666,0.00021918,2]
[326739542,1715293844292,-166.666666,0.00022559,2]
[326739544,1715293844302,-166.666666,0.000232,2]
[326739546,1715293844311,-166.666666,0.00023841,2]
[326739548,1715293844320,-166.666666,0.00024482,2]
[326739549,1715293844329,-620.30472031,0.00024857,2]
[326739551,1715293844338,-620.01523602,0.00026099,2]
[326739554,1715293844348,-166.725,0.00027314,2]
[326739555,1715293844358,-406.5,0.00029046,5]
[326739557,1715293844367,-172.0,0.0003,2]
[326739560,1715293844377,-166.725,0.0003223,7]
[326739561,1715293844386,-466.94535979,0.00034,4]
[326739564,1715293844397,-166.725,0.00034598,7]
[326739566,1715293844407,-154.7215013,0.00035,4]
[326739568,1715293844416,-322.07196136,0.00035,30]
[326739577,1715293844494,-156.17312734,0.00035,30]
[326739579,1715293844503,-172.0,0.00035085,2]
[326739581,1715293844512,-4684.0,0.00035085,3]
[326739583,1715293844522,-15947.1662,0.00035095,30]
[326739585,1715293844532,-166.725,0.00036794,7]
[326739587,1715293844542,-1980.598515,0.00037,2]
[326739589,1715293844551,-172.0,0.00038085,2]
[326739591,1715293844560,-1003.204093,0.000385,27]
[326739593,1715293844569,-151.0,0.00038735,30]
[326739595,1715293844578,-157.96408013,0.00038735,30]
[326739597,1715293844587,-157.96408013,0.00038735,30]
[326739599,1715293844596,-3903.34,0.00039989,3]
[326739601,1715293844605,-500.0,0.00039998,31]
[326739603,1715293844614,-514.94453762,0.00039998,31]
[326739605,1715293844624,-1533.61223225,0.00039998,14]
[326739607,1715293844634,-178.84320507,0.00039998,7]
[326739609,1715293844643,-154.8858108,0.00039998,4]
[326739611,1715293844652,-2153.06372081,0.00039998,4]
[326739613,1715293844662,-155.13711819,0.00039998,4]
[326739615,1715293844671,-40037.7191123,0.00039999,15]
[326739617,1715293844680,-155.04239008,0.00039999,4]
[326739619,1715293844689,-32485.99377091,0.00039999,4]
[326739621,1715293844699,-48470.06134735,0.0004,2]
[326739623,1715293844708,-744.73987936,0.0004,4]
[326739624,1715293844717,-13541.20823274,0.0004,120]
[326739626,1715293844727,-2272.64158094,0.000419,30]
[326739628,1715293844737,-150.0,0.00042799,60]
[326739630,1715293844746,-873.86285017,0.000428,60]
[326739633,1715293844755,-153.0,0.00043054,2]
[326739634,1715293844765,-150.0,0.00043799,60]
[326739636,1715293844774,-150.0,0.00043799,60]
[326739638,1715293844784,-819.73415958,0.00045,20]
[326739640,1715293844793,-166.725,0.00048976,30]
[326739641,1715293844803,-5000.0,0.0005,30]
[326739642,1715293844812,-406.5,0.00050769,60]
[326739643,1715293844821,-166.725,0.00051944,60]
[326739644,1715293844830,-5000.0,0.00055,35]
[326739645,1715293844840,-55555.0,0.000599,120]
[326739646,1715293844849,-5000.0,0.0006,40]
[326739647,1715293844859,-2411.28,0.0006,60]
[326739649,1715293844869,-166.725,0.00063121,120]
[326739651,1715293844878,-5000.0,0.00065,45]
[326739653,1715293844888,-150.1,0.00065753,120]
[326739655,1715293844897,-621.5,0.00065753,120]
[326739657,1715293844907,-500.0,0.00065753,120]
[326739659,1715293844916,-500.0,0.00065753,120]
[326739661,1715293844926,-500.0,0.00065753,120]
[326739663,1715293844935,-500.0,0.00065753,120]
[326739665,1715293844946,-500.0,0.00065753,120]
[326739667,1715293844959,-500.0,0.00065753,120]
[326739669,1715293844971,-500.0,0.00065753,120]
[326739671,1715293844980,-500.0,0.00065753,120]
[326739673,1715293844990,-500.0,0.00065753,120]
[326739675,1715293845000,-500.0,0.00065753,120]
[326739677,1715293845009,-500.0,0.00065753,120]
[326739679,1715293845019,-500.0,0.00065753,120]
[326739681,1715293845028,-500.0,0.00065753,120]
[326739683,1715293845038,-500.0,0.00065753,120]
[326739684,1715293845050,-500.0,0.00065753,120]
[326739686,1715293845059,-209.65918687,0.00065753,120]
[326739688,1715293845068,-500.0,0.00065753,120]
[326739690,1715293845077,-2896.82867106,0.0007,46]
[326739696,1715293845121,-2103.17132894,0.0007,46]
[326739698,1715293845130,-175.0,0.0007,120]
[326739700,1715293845140,-5000.0,0.000709,120]
[326739702,1715293845150,-406.5,0.00072492,120]
[326739704,1715293845159,-166.725,0.0007254,120]
[326739706,1715293845168,-5000.0,0.000729,120]
[326739708,1715293845177,-150.104,0.0007343,120]
[326739710,1715293845186,-2500.0,0.000749,120]
[326739712,1715293845197,-5000.0,0.00075,47]
[326739714,1715293845206,-169.532797,0.00076438,120]
[326739716,1715293845214,-208.8267,0.00076438,120]
[326739718,1715293845223,-165.764849,0.00076438,120]
[326739720,1715293845233,-461.2961289,0.00076712,120]
[326739722,1715293845242,-166.666666,0.00076712,120]
[326739724,1715293845251,-2500.0,0.000769,120]
[326739726,1715293845260,-589.0,0.000779,30]
[326739728,1715293845269,-199.97863956,0.00078113,120]
[326739730,1715293845279,-1498.0,0.00078747,88]
[326739732,1715293845288,-202.25,0.00078785,30]
[326739734,1715293845297,-200.0,0.00078804,120]
[326739736,1715293845306,-159.90170305,0.00078804,120]
[326739738,1715293845315,-159.90170305,0.00078804,120]
[326739740,1715293845325,-159.90170305,0.00078804,120]
[326739742,1715293845334,-159.90170305,0.00078804,120]
[326739744,1715293845343,-160.4,0.00078804,120]
[326739746,1715293845352,-168.54,0.00078893,30]
[326739748,1715293845361,-842.75,0.00078893,30]
[326739750,1715293845370,-1000.0,0.00078899,30]
[326739752,1715293845379,-1000.0,0.00078899,30]
[326739754,1715293845388,-1000.0,0.00078899,30]
[326739756,1715293845397,-1000.0,0.00078899,30]